Workbook

Sheet Чт 2 нед
A1: Рацион: ШК 11-18 лет | B1: 12 лет и старше | E1: День: | F1: четверг | I1: Школа | K1: СОШ с. Нижнеулу-Елга
D2: Неделя: | F2: 2 | I2: Возраст: | K2: 12 лет и старше
A3: № рец. | B3: Прием пищи, наименование блюда | D3: Масса порции | E3: Пищевые вещества (г) | H3: Энерге- тическая ценность (ккал) | I3: Витамины (мг) | M3: Минеральные вещества (мг)
E4: Б | F4: Ж | G4: У | I4: B1 | J4: C | K4: A | L4: E | M4: Ca | N4: P | O4: Mg | P4: Fe
A5: 1 | B5: 2 | D5: 3 | E5: 4 | F5: 5 | G5: 6 | H5: 7 | I5: 8 | J5: 9 | K5: 10 | L5: 11 | M5: 12 | N5: 13 | O5: 14 | P5: 15
A6: Завтрак
A7: 446.00 | B7: Котлеты куриные с томатным соусом | D7: 50/50 | E7: 9.60 | F7: 12.78 | G7: 8.63 | H7: 179.93 | I7: 0.08 | J7: 1.7 | K7: 48.17 | L7: 2.20 | M7: 29.01 | N7: 108.12 | O7: 16.0 | P7: 1.62
A8: 211.06 | B8: Макаронные изделия отварные с маслом | D8: 180/10 | E8: 6.97 | F8: 4.44 | G8: 44.48 | H8: 245.99 | I8: 0.11 | K8: 22.5 | L8: 1 | M8: 18.32 | N8: 56.31 | O8: 10.39 | P8: 1.06
A9: 285 | B9: Чай с лимоном и сахаром | D9: 200 | E9: 0,06 | F9: 0,01 | G9: 10,19 | H9: 42,28 | J9: 2,8 | K9: 0,14 | L9: 0,01 | M9: 3,1 | N9: 1,54 | O9: 0,84 | P9: 0,07
A10: 1,1 | B10: Хлеб пшеничный обогащенный витаминами для детского питания | D10: 30 | E10: 2,4 | F10: 0,3 | G10: 16,5 | H10: 78 | I10: 0,1 | L10: 0,45 | M10: 6 | N10: 19,5 | O10: 4,2 | P10: 0,75
A11: 1,2 | B11: Хлеб ржано-пшеничный для детского питания | D11: 30 | E11: 2,4 | F11: 0,3 | G11: 13,8 | H11: 66 | I11: 0,12 | L11: 0,51 | M11: 8,7 | N11: 39 | O11: 12,6 | P11: 0,9
A12: Итого за Завтрак суммарная масса порции:550 | E12: =E7+E8+E9+E10+E11 -> 21.4 | F12: =F7+F8+F9+F10+F11 -> 17.8 | G12: =G7+G8+G9+G10+G11 -> 93.6 | H12: =H7+H8+H9+H10+H11 -> 612.2 | I12: =I7+I8+I9+I10+I11 -> 0.4 | J12: =J7+J8+J9+J10+J11 -> 4.5 | K12: =K7+K8+K9+K10+K11 -> 70.8 | L12: =L7+L8+L9+L10+L11 -> 4.2 | M12: =M7+M8+M9+M10+M11 -> 65.1 | N12: =N7+N8+N9+N10+N11 -> 224.5 | O12: =O7+O8+O9+O10+O11 -> 44.1 | P12: =P7+P8+P9+P10+P11 -> 4.4
A13: Обед
A14: 17\6 | B14: Морковь свежая порционная | D14: 100 | E14: 1.2 | F14: 0.1 | G14: 6.3 | H14: 30.8 | I14: 0.03 | J14: 2 | K14: 1200 | L14: 2.5 | M14: 23.75 | N14: 47.85 | O14: 33.05 | P14: 0.6
A15: 67.08 | B15: Свекольник со сметаной | D15: 250/5 | E15: 2.61 | F15: 5.04 | G15: 18.13 | H15: 128.71 | I15: 0.08 | J15: 19.34 | K15: 212.24 | L15: 1.98 | M15: 52.13 | N15: 77.5 | O15: 35.4 | P15: 1.82
A16: 80.62 | B16: Рыба, тушенная с овощами(филе минтая) | D16: 50/50 | E16: 10.18 | F16: 7.78 | G16: 2.17 | H16: 119.99 | I16: 0.08 | J16: 30.04 | K16: 446.15 | L16: 3.46 | M16: 45.28 | N16: 164.48 | O16: 43.48 | P16: 0.73
A17: 175.12 | B17: Каша гречневая вязкая с маслом | D17: 180/5 | E17: 5.71 | F17: 5.11 | G17: 25.76 | H17: 171.65 | I17: 0.19 | K17: 23.4 | L17: 0.41 | M17: 13.51 | N17: 135.6 | O17: 90.2 | P17: 3.05
A18: 294.01 | B18: Компот из свежих плодов | D18: 200 | E18: 0.16 | F18: 0.16 | G18: 18.89 | H18: 68 | I18: 0.01 | J18: 4 | K18: 2 | L18: 0.08 | M18: 6.85 | N18: 4.4 | O18: 3.6 | P18: 0.93
A19: 420,06 | B19: Хлеб пшеничный обогащенный витаминами для детского питания | D19: 50 | E19: 4 | F19: 0,5 | G19: 27,5 | H19: 130 | I19: 0,17 | L19: 0,75 | M19: 10 | N19: 32,5 | O19: 7 | P19: 1,25
A20: 421.11 | B20: Хлеб ржано-пшеничный для детского питания | D20: 40 | E20: 3.2 | F20: 0.4 | G20: 18.4 | H20: 120 | I20: 0.16 | L20: 0.68 | M20: 11.6 | N20: 52 | O20: 16.8 | P20: 1.2
A21: Итого за Обед суммарная масса порции: 930 | E21: =E14+E15+E16+E17+E18+E19+E20 -> 27.06 | F21: =F14+F15+F16+F17+F18+F19+F20 -> 19.09 | G21: =G14+G15+G16+G17+G18+G19+G20 -> 117.15 | H21: =H14+H15+H16+H17+H18+H19+H20 -> 769.15 | I21: =I14+I15+I16+I17+I18+I19+I20 -> 0.72 | J21: =J14+J15+J16+J17+J18+J19+J20 -> 55.38 | K21: =K14+K15+K16+K17+K18+K19+K20 -> 1883.79 | L21: =L14+L15+L16+L17+L18+L19+L20 -> 9.86 | M21: =M14+M15+M16+M17+M18+M19+M20 -> 163.12 | N21: =N14+N15+N16+N17+N18+N19+N20 -> 514.33 | O21: =O14+O15+O16+O17+O18+O19+O20 -> 229.53 | P21: =P14+P15+P16+P17+P18+P19+P20 -> 9.58
A22: Итого за день | E22: =E12+E21 -> 48.49 | F22: =F12+F21 -> 36.92 | G22: =G12+G21 -> 210.75 | H22: =H12+H21 -> 1381.35 | I22: =I12+I21 -> 1.13 | J22: =J12+J21 -> 59.88 | K22: =K12+K21 -> 1954.6 | L22: =L12+L21 -> 14.03 | M22: =M12+M21 -> 228.25 | N22: =N12+N21 -> 738.8 | O22: =O12+O21 -> 273.59 | P22: =P12+P21 -> 13.98
